[Event "125-Jahre Werder Bremen 2024"]
[Site "Bremen"]
[Date "2024.03.09"]
[Round "8.6"]
[White "Krastev, Alexander"]
[Black "Gloeckler, Christian"]
[Result "1/2-1/2"]
[ECO "B25"]
[WhiteElo "2457"]
[BlackElo "2356"]
[Annotator "TA"]
[PlyCount "82"]
[EventDate "2024.02.26"]
[EventType "swiss"]
[EventCountry "GER"]
[SourceTitle "playchess.com"]
[Source "ChessBase"]
[SourceQuality "1"]
[TimeControl "40/6000+30:1800+30"]

{[%evp 17,82,5,4,7,22,-9,0,0,9,0,1,-32,-17,-10,-23,-35,-9,-19,-15,-12,-14,-63,-55,-77,-52,-82,-66,-62,-10,-16,-1,0,-1,-13,-25,-16,0,-56,-15,0,0,0,0,0,18,12,25,0,0,0,0,0,0,0,0,0,0,0,0,0,16,0,0,0,0,0,8]} 1. e4 {[%emt 0:03:10]} c5 {[%emt 0:00:09]} 2. Nc3 {[%emt 0:00:07]} d6 {[%emt 0:00:09]} 3. Nge2 {[%emt 0:00:07]} Nf6 {[%emt 0:00:10]} 4. g3 {[%emt 0:00:05]} g6 {[%emt 0:01:03]} 5. Bg2 {[%emt 0:01:11]} Bg7 {[%emt 0:00:11]} 6. O-O {[%emt 0:00:10]} O-O {[%emt 0:00:27]} 7. d3 {[%emt 0:00:18]} Nc6 {[%emt 0:00:40]} 8. h3 {[%emt 0:00:06]} Rb8 {[%emt 0:01:28]} 9. f4 {[%emt 0:00:09]} Nd7 {[%emt 0:00:49]} 10. a4 {[%emt 0:00:13]} a6 {[%emt 0:00:57]} 11. Be3 {[%emt 0:01:49]} Nd4 {[%emt 0:03:27]} 12. Rb1 {[%emt 0:11:26]} e6 {[%emt 0:26:50]} 13. b4 {[%emt 0:18:50]} b6 {[%emt 0:06:49]} 14. Na2 {[%emt 0:05:20]} Nxe2+ {[%emt 0:05:03]} 15. Qxe2 {[%emt 0:00:07]} Bb7 {[%emt 0:00:07]} 16. c3 {[%emt 0:08:36]} Bc6 {[%emt 0:06:06]} 17. b5 {[%emt 0:15:25]} axb5 {[%emt 0:05:03]} 18. axb5 {[%emt 0:00:04]} Bb7 {[%emt 0:00:07]} 19. g4 {[%emt 0:00:09]} (19. c4 $11) 19... Ra8 $15 {[%emt 0:02:47]} 20. Rf2 {[%emt 0:09:12]} Ra3 {[%emt 0:06:14][%cal Od8h4]} 21. Rbf1 {[%emt 0:06:02]} Qe7 {[%emt 0:11:27][%cal Of8a8]} ({Reject} 21... Bxc3 $6 22. Nxc3 Rxc3 23. f5 exf5 24. gxf5 $11) 22. c4 {[%emt 0:16:16]} Rb3 {[%emt 0:10:06]} (22... f5 $15 23. Bc1 Ra7) 23. Qd1 {[%emt 0:08:49]} Rb2 {[%emt 0:03:13]} 24. Rxb2 {[%emt 0:01:22]} Bxb2 {[%emt 0:00:04]} 25. Rf2 {[%emt 0:00:18]} Bg7 {[%emt 0:01:26]} 26. Nc1 {[%emt 0:02:40]} f5 {[%emt 0:05:11]} 27. exf5 {[%emt 0:00:13]} (27. g5 $11) 27... Bxg2 {[%emt 0:00:53]} 28. Kxg2 {[%emt 0:00:04]} exf5 {[%emt 0:00:26]} 29. Qf3 {[%emt 0:00:03]} fxg4 {[%emt 0:03:44]} 30. hxg4 {[%emt 0:00:04][%cal Bh3g4,Bg4g5][%mdl 32]} Nf6 {[%emt 0:00:40][%cal Of6g4]} 31. g5 {[%emt 0:01:15]} Nh5 {[%emt 0:02:06]} 32. Ne2 {[%emt 0:00:34]} h6 {[%emt 0:02:45] The position is equal.} 33. Qe4 {[%emt 0:02:09]} Qxe4+ {[%emt 0:01:06]} 34. dxe4 {[%emt 0:00:01]} hxg5 {[%emt 0:00:13]} 35. fxg5 {[%emt 0:00:08]} Re8 {[%emt 0:02:37]} 36. Kf3 {[%emt 0:00:01]} Ra8 {[%emt 0:00:16]} 37. Nf4 {[%emt 0:01:09]} Nxf4 {[%emt 0:02:08]} 38. Bxf4 {[%emt 0:00:02]} Ra3+ {[%emt 0:01:04]} 39. Kg2 {[%emt 0:00:25]} Ra4 {[%emt 0:00:52]} 40. Bxd6 {[%emt 0:01:17] [#] Threatens to win with e5.} Rxc4 {[%emt 0:00:31]} 41. e5 {[%emt 0:30:38] Hoping for e6.} Re4 {[%emt 0:10:23] Weighted Error Value: White=0.13 (very precise) /Black=0.09 (flawless) .  Mistake:       	White=2     	Black=1      Inaccurate:     	White=3     	Black=2      OK:         	White=8     	Black=15     Best:        	---       	Black=2} 1/2-1/2

[Event "125-Jahre Werder Bremen 2024"]
[Site "Bremen"]
[Date "2024.03.09"]
[Round "8.7"]
[White "Schneider, Jana"]
[Black "Reuker, Jari"]
[Result "1-0"]
[ECO "C65"]
[WhiteElo "2303"]
[BlackElo "2383"]
[Annotator "TA"]
[PlyCount "120"]
[EventDate "2024.02.26"]
[EventType "swiss"]
[EventCountry "GER"]
[SourceTitle "playchess.com"]
[Source "ChessBase"]
[SourceQuality "1"]
[TimeControl "40/6000+30:1800+30"]

{[%evp 31,120,0,10,0,0,0,-5,-23,0,0,0,-31,0,-16,0,0,0,0,0,0,4,8,8,0,14,-5,48,51,48,53,55,58,53,46,53,54,72,67,58,66,79,62,48,46,68,49,63,60,61,50,47,47,67,62,79,77,79,29,79,79,79,79,79,45,36,47,44,34,58,0,10,0,6,10,15,4,148,0,47,58,131,139,29987,29988,29988,29989,29989,29990,29990,29991,29999]} 1. e4 {[%emt 0:00:04]} e5 {[%emt 0:00:06]} 2. Nf3 {[%emt 0:00:09]} Nc6 {[%emt 0:00:06]} 3. Bb5 {[%emt 0:00:07]} Nf6 {[%emt 0:00:08]} 4. d3 {[%emt 0:00:16]} Bc5 {[%emt 0:00:07]} 5. Bxc6 dxc6 {[%emt 0:05:15]} 6. Nbd2 {[%emt 0:00:29] C65: Spanische Partie (Berliner-Verteidigung).} Nd7 {[%emt 0:05:40] 6...Nd7 ist aktuell in Mode.} 7. O-O {[%emt 0:04:23]} O-O {[%emt 0:00:28]} 8. c3 {[%emt 0:02:17]} Re8 {[%emt 0:00:26]} 9. d4 exd4 $146 {[%emt 0:01:16]} ({Predecessor:} 9... Bd6 10. Qc2 exd4 11. cxd4 Nf8 12. Nc4 Bg4 13. Nfe5 Be6 14. Be3 f6 15. Nd3 Ng6 {½-½ Bauer,C (2650)-Heimann,A (2583) SUI-chT Switzerland 2021 (8.1)}) 10. cxd4 {[%emt 0:01:25]} Bf8 {[%emt 0:00:14]} 11. Re1 {[%emt 0:02:44]} a5 {[%emt 0:04:02]} 12. Qc2 {[%emt 0:08:29]} a4 {[%emt 0:04:54]} 13. Nf1 {[%emt 0:04:00]} c5 {[%emt 0:05:19]} 14. Bg5 {[%emt 0:04:07]} f6 {[%emt 0:07:16]} 15. Bf4 {[%emt 0:00:40]} c6 {[%emt 0:04:53]} 16. e5 {[%emt 0:14:09]} cxd4 {[%emt 0:15:58]} 17. Qc4+ {[%emt 0:06:00]} Kh8 {[%emt 0:00:07]} 18. exf6 {[%emt 0:00:33]} Nxf6 {[%emt 0:05:17]} 19. Nxd4 {[%emt 0:07:26]} Nd5 {[%emt 0:04:10]} 20. Be5 {[%emt 0:15:02]} Bd7 {[%emt 0:01:31]} 21. Ng3 {[%emt 0:03:24]} Qb6 {[%emt 0:08:24]} 22. Ndf5 {[%emt 0:02:52]} Qb4 {[%emt 0:03:39]} (22... Rxe5 $5 23. Rxe5 Qxb2 $17) 23. Qe2 {[%emt 0:02:52]} Re6 {[%emt 0:04:13]} 24. a3 {[%emt 0:06:39]} Qa5 {[%emt 0:01:54]} 25. Nd4 {[%emt 0:05:31]} Rg6 {[%emt 0:04:50]} 26. h4 {[%emt 0:01:04]} Re8 {[%emt 0:00:46]} 27. h5 {[%emt 0:03:12]} Rf6 {[%emt 0:03:23]} 28. Qd1 {[%emt 0:02:56] [#]} Nc3 {[%emt 0:02:13]} (28... Ne3 $1 $11 29. Rxe3 Rxe5) 29. Nxc6 $14 {[%emt 0:01:57]} Bxc6 {[%emt 0:04:34]} 30. Bxc3 {[%emt 0:00:37]} (30. bxc3 $2 Rxe5 31. Rxe5 Qxe5 $19) 30... Rxe1+ {[%emt 0:00:06]} 31. Qxe1 {[%emt 0:00:22]} Qd5 {[%emt 0:00:07]} 32. Qf1 $1 {[%emt 0:04:20]} Rd6 {[%emt 0:08:01]} 33. Bb4 $1 {[%emt 0:00:14]} Rd8 {[%emt 0:00:14]} 34. Bxf8 {[%emt 0:00:41]} Rxf8 {[%emt 0:00:04]} 35. Rd1 {[%emt 0:00:38]} Qg5 {[%emt 0:02:45]} 36. Qd3 {[%emt 0:01:13]} h6 {[%emt 0:00:30]} 37. Qd6 {[%emt 0:02:27]} (37. Qc4 {vereinfacht} Qf6 38. Qd4 Qxd4 39. Rxd4 Re8 40. f4) 37... Kg8 {[%emt 0:01:21]} 38. Qe6+ {[%emt 0:01:54]} Kh7 {[%emt 0:00:45]} 39. Qe2 {[%emt 0:02:31]} Qf4 {[%emt 0:02:38]} 40. Qc2+ {[%emt 0:01:30]} Kh8 {[%emt 0:00:35]} 41. Qc5 {[%emt 0:04:20]} Kg8 {[%emt 0:03:38]} 42. Rd6 {[%emt 0:01:49]} Re8 {[%emt 0:02:47] [#]} 43. Rd4 $1 {[%emt 0:02:21]} Qf6 {[%emt 0:04:40]} 44. Qb4 {[%emt 0:07:29]} ({Vorzuziehen ist} 44. f3 $16) 44... Qe5 {[%emt 0:05:40]} (44... Re1+ $1 $11 {bleibt in der Remisbreite.} 45. Qxe1 Qxd4) 45. Kh2 $16 {[%emt 0:04:21]} Rf8 {[%emt 0:01:36]} 46. Qd2 {[%emt 0:01:10]} Qe7 {[%emt 0:03:26]} 47. Rg4 {[%emt 0:03:06]} Qf6 {[%emt 0:02:34]} 48. f3 {[%emt 0:02:24]} (48. Kg1 {mit weiteren Verwicklungen.} Rd8 49. Qf4 Rd1+ 50. Kh2) 48... Rd8 {[%emt 0:00:48]} 49. Qc2 {[%emt 0:01:36]} Rd5 {[%emt 0:01:28]} 50. Qc1 {[%emt 0:02:52]} (50. Qg6 $1 $14 Qxg6 51. hxg6) 50... Qd6 {[%emt 0:01:29]} 51. Rf4 {[%emt 0:03:07]} Kh8 {[%emt 0:01:30]} (51... Rc5 $5 52. Qe3 $8 Kh7 $11) 52. Qc4 {[%emt 0:01:41]} Rb5 {[%emt 0:02:37]} (52... b5 {vereinfacht} 53. Qb4 Qxb4 54. Rxb4 Be8) 53. Qf7 {[%emt 0:00:50]} (53. Qxa4 $2 Rxh5+ (53... Rxb2 $2 54. Qa8+ Kh7 55. Rf8 $18) 54. Nxh5 Bxa4 $19) 53... Kh7 {[%emt 0:02:31]} (53... Rxb2 $11 {hält das Gleichgewicht.} 54. Rg4 (54. Qxg7+ Kxg7 55. Nf5+ Kf6 $16) 54... Qf6 (54... Qxa3 55. Qxg7#) 55. Qxf6 gxf6) 54. Kg1 {[%emt 0:00:33]} (54. Rg4 $16 {[%csl Gg4][%cal Rf7g7]} Rg5 55. Rxg5 hxg5 56. b4) 54... Qc5+ {[%emt 0:02:03]} (54... Rg5 $11 55. Kh2 b5) 55. Kh1 $1 $14 {[%emt 0:00:02]} ({Bloß nicht} 55. Kh2 $6 Qd6 $16) 55... Rxb2 {[%emt 0:00:49]} (55... Qc1+ $1 $14 56. Kh2 Rg5) 56. Qg6+ $16 {[%emt 0:00:29]} Kh8 $2 {[%emt 0:00:09][%mdl 8192]} (56... Kg8 $16 57. Qe6+ Kh7) 57. Rf7 {[%emt 0:00:15]} Qc1+ {[%emt 0:02:10]} 58. Kh2 {[%emt 0:00:02]} Rxg2+ {[%emt 0:00:23]} 59. Kxg2 {[%emt 0:00:05]} Qd2+ {[%emt 0:00:54]} 60. Kh3 {[%emt 0:00:06]} Kg8 {[%emt 0:01:03]} 1-0

[Event "125-Jahre Werder Bremen 2024"]
[Site "Bremen"]
[Date "2024.03.09"]
[Round "8.8"]
[White "Kopylov, Michael"]
[Black "Colbow, Collin"]
[Result "1/2-1/2"]
[ECO "E08"]
[WhiteElo "2352"]
[BlackElo "2373"]
[Annotator "TA"]
[PlyCount "33"]
[EventDate "2024.02.26"]
[EventType "swiss"]
[EventCountry "GER"]
[SourceTitle "playchess.com"]
[Source "ChessBase"]
[SourceQuality "1"]
[TimeControl "40/6000+30:1800+30"]

{[%evp 19,33,0,0,0,0,2,10,6,6,0,0,0,7,0,9,0]} 1. d4 {[%emt 0:00:03]} Nf6 {[%emt 0:07:01]} 2. c4 {[%emt 0:00:18]} e6 {[%emt 0:00:11]} 3. g3 {[%emt 0:00:28]} d5 {[%emt 0:00:17]} 4. Bg2 {[%emt 0:00:14]} Bb4+ {[%emt 0:00:09]} 5. Bd2 {[%emt 0:06:24]} Be7 {[%emt 0:00:30]} 6. Nf3 {[%emt 0:00:28]} O-O {[%emt 0:00:11]} 7. O-O {[%emt 0:00:24]} Nbd7 {[%emt 0:00:30]} 8. Qc2 {[%emt 0:00:39]} c6 {[%emt 0:00:30]} 9. Bf4 {[%emt 0:02:13]} b6 {[%emt 0:01:21]} 10. cxd5 cxd5 {[%emt 0:00:40] The position is equal.} 11. Rc1 {[%emt 0:04:07]} Bb7 {[%emt 0:01:54]} 12. Nc3 {[%emt 0:04:16]} Rc8 {[%emt 0:02:01]} 13. Qd1 {[%emt 0:04:51]} Nh5 {[%emt 0:17:10]} 14. Be3 {[%emt 0:04:49]} Nhf6 {[%emt 0:07:23]} 15. Bf4 {[%emt 0:03:54]} Nh5 {[%emt 0:15:21]} 16. Be3 {[%emt 0:01:22]} Nhf6 {[%emt 0:00:12]} 17. Bf4 {[%emt 0:05:27] An uneventful encounter.   Weighted Error Value: White=0.02 (flawless) /Black=0.01 (flawless) .  OK:         	White=2     	Black=5} 1/2-1/2

[Event "125-Jahre Werder Bremen 2024"]
[Site "Bremen"]
[Date "2024.03.09"]
[Round "8.9"]
[White "Knaak, Rainer"]
[Black "Wachinger, Nikolas"]
[Result "1/2-1/2"]
[ECO "E49"]
[WhiteElo "2450"]
[BlackElo "2442"]
[Annotator "TA"]
[PlyCount "94"]
[EventDate "2024.02.26"]
[EventType "swiss"]
[EventCountry "GER"]
[SourceTitle "playchess.com"]
[Source "ChessBase"]
[SourceQuality "1"]
[TimeControl "40/6000+30:1800+30"]

{[%evp 19,94,-20,22,24,17,16,13,11,45,0,0,-5,-9,0,23,-16,-9,-30,-11,-32,-35,-50,-57,-60,-55,-47,-49,-45,-7,-6,0,0,0,0,0,-39,0,0,81,0,0,0,75,77,71,0,0,0,0,0,8,8,84,106,82,0,0,0,66,0,0,0,0,0,0,0,0,0,0,0,0,0,0,0,0,0,0]} 1. d4 {[%emt 0:00:04]} Nf6 {[%emt 0:00:07]} 2. c4 {[%emt 0:00:09]} e6 {[%emt 0:00:08]} 3. Nc3 {[%emt 0:00:07]} Bb4 {[%emt 0:00:07]} 4. e3 {[%emt 0:00:17]} O-O {[%emt 0:00:09]} 5. Bd3 {[%emt 0:00:15]} d5 {[%emt 0:00:14]} 6. Nge2 {[%emt 0:00:45]} dxc4 {[%emt 0:00:20]} 7. Bxc4 {[%emt 0:00:28]} c5 {[%emt 0:00:14]} 8. a3 {[%emt 0:00:40]} Bxc3+ {[%emt 0:00:36]} 9. bxc3 {[%emt 0:00:12]} Qc7 {[%emt 0:00:12]} 10. Bd3 {[%emt 0:02:32]} b6 {[%emt 0:03:57]} 11. e4 {[%emt 0:06:21]} Ba6 {[%emt 0:11:19]} 12. Bg5 {[%emt 0:12:07]} Bxd3 {[%emt 0:15:13]} 13. Qxd3 {[%emt 0:00:08]} Nbd7 {[%emt 0:00:34]} 14. e5 {[%emt 0:22:09]} (14. f3 $14) 14... c4 $11 {[%emt 0:00:11]} 15. Qh3 {[%emt 0:09:40]} Nd5 {[%emt 0:00:28]} 16. O-O {[%emt 0:00:43]} Rae8 {[%emt 0:01:13]} 17. Bd2 {[%emt 0:02:32]} f6 {[%emt 0:07:00]} 18. f4 {[%emt 0:00:12]} Qc6 {[%emt 0:00:51]} 19. a4 {[%emt 0:08:06]} a6 {[%emt 0:01:13]} 20. Ng3 {[%emt 0:07:20]} f5 {[%emt 0:00:46] Dodges Ne4} 21. Ne2 {[%emt 0:01:39]} b5 {[%emt 0:03:10]} 22. axb5 {[%emt 0:01:52]} axb5 {[%emt 0:02:06]} 23. g4 {[%emt 0:00:11]} g6 {[%emt 0:34:08]} 24. gxf5 $1 {[%emt 0:00:55]} gxf5 {[%emt 0:01:57]} 25. Kf2 {[%emt 0:01:19]} Kh8 {[%emt 0:01:12]} 26. Rg1 {[%emt 0:00:13]} Rg8 {[%emt 0:01:12]} 27. Qh5 {[%emt 0:11:06]} Ne7 {[%emt 0:01:07]} 28. Rg3 {[%emt 0:03:49]} Rxg3 {[%emt 0:03:12]} (28... Nb6 $11) 29. Nxg3 {[%emt 0:04:58]} (29. Qxe8+ $2 {too greedy.} Rg8 $19) (29. hxg3 $16 Ng6 30. Qf3 Qxf3+ 31. Kxf3) 29... Rg8 {[%emt 0:02:52]} 30. Ra7 $36 {[%emt 0:02:01][%mdl 2048] Black is under pressure.} Nd5 {[%emt 0:04:06]} (30... Nc8 $11 31. Ra5 Ndb6) 31. Qf7 $16 {[%emt 0:01:05]} N5b6 {[%emt 0:01:32][%cal Ob5b4] Black is weak on the dark squares} 32. Be3 {[%emt 0:07:56] The board is on fire. White has more active pieces.} (32. d5 $1 $16 {[%cal Rd5c6]} Qxd5 33. Be3) 32... Qd5 $11 {[%emt 0:00:30]} 33. Qe7 {[%emt 0:01:33]} h6 {[%emt 0:01:24]} 34. Ra1 {[%emt 0:00:39]} Rg7 {[%emt 0:00:42]} 35. Qe8+ {[%emt 0:01:53]} Kh7 {[%emt 0:00:04] [#]} (35... Rg8 $11 {keeps the balance.} 36. Qh5 Rg7) 36. Rg1 $1 $16 {[%emt 0:00:21]} Rg8 {[%emt 0:05:50] [#] Prevents Nh5} 37. Qe7+ {[%emt 0:00:14]} (37. Qh5 $1 $16) 37... Rg7 $11 {[%emt 0:00:19]} 38. Qe8 {[%emt 0:00:21]} ({White should try} 38. Qa3 $11) 38... Rg8 $1 $14 {[%emt 0:00:38]} 39. Qf7+ {[%emt 0:00:13]} (39. Qh5 $1 $14) 39... Rg7 $11 {[%emt 0:00:08] The position is equal.} 40. Qh5 {[%emt 0:00:21][%cal Og3f5]} Na4 {[%emt 0:02:49][%cal Bb6a4,Ba4b2,Bb2d3][%mdl 32]} 41. Ne2 {[%emt 0:09:19]} Nb2 {[%emt 0:03:12] Strongly threatening ...Nd3+.} 42. Rxg7+ {[%emt 0:10:56]} Kxg7 {[%emt 0:00:07]} 43. Ng3 {[%emt 0:00:47]} Nd3+ {[%emt 0:02:59]} 44. Kg1 {[%emt 0:01:18] And now Qe8 would win.} Ne1 {[%emt 0:01:57][%csl Ge1][%cal Rd5g2] Excellent horsemanship.} 45. Kf2 {[%emt 0:01:16]} Nd3+ {[%emt 0:01:10]} 46. Kg1 {[%emt 0:00:17] Threatens to win with Qe8.} Ne1 {[%emt 0:17:52][%csl Ge1][%cal Rd5g2]} 47. Kf2 {[%emt 0:00:08]} Nd3+ {[%emt 0:00:31] Weighted Error Value: White=0.15 (very precise) /Black=0.12 (very precise) .  Mistake:       	White=6     	Black=3      Inaccurate:     	White=2     	Black=3      OK:         	White=12    	Black=16     Best:        	White=4     	Black=5      Strong:       	White=2     	Black=1} 1/2-1/2

[Event "125-Jahre Werder Bremen 2024"]
[Site "Bremen"]
[Date "2024.03.09"]
[Round "8.10"]
[White "Hejazipour, Mitra"]
[Black "Wiegmann, Sascha"]
[Result "1-0"]
[ECO "D27"]
[WhiteElo "2356"]
[BlackElo "2297"]
[Annotator "TA"]
[PlyCount "77"]
[EventDate "2024.02.26"]
[EventType "swiss"]
[EventCountry "GER"]
[SourceTitle "playchess.com"]
[Source "ChessBase"]
[SourceQuality "1"]
[TimeControl "40/6000+30:1800+30"]

{[%evp 16,77,27,19,16,15,40,25,34,10,35,-10,23,31,6,22,20,-6,-19,-9,-11,-24,-27,-50,-15,-20,0,-16,-30,-21,99,89,91,89,85,80,90,2,60,68,228,65,131,134,247,273,891,101,83,83,125,74,77,50,66,16,16,8,8,0,0,0,428,420]} 1. d4 {[%emt 0:00:09]} d5 {[%emt 0:00:01]} 2. Nf3 {[%emt 0:00:13]} Nf6 {[%emt 0:00:07]} 3. c4 {[%emt 0:00:16]} dxc4 {[%emt 0:00:02]} 4. e3 {[%emt 0:00:30]} e6 {[%emt 0:00:06]} 5. Bxc4 {[%emt 0:00:30]} a6 {[%emt 0:00:03]} 6. O-O {[%emt 0:00:48]} c5 {[%emt 0:00:08]} 7. b3 {[%emt 0:00:44]} cxd4 8. Nxd4 {[%emt 0:00:52]} Be7 {[%emt 0:08:46]} 9. Bb2 {[%emt 0:03:23]} O-O {[%emt 0:01:04]} 10. Be2 {[%emt 0:03:24]} b6 {[%emt 0:16:58]} 11. Nd2 {[%emt 0:07:17]} Bb7 {[%emt 0:01:24] White has an edge.} 12. Bf3 {[%emt 0:01:07]} Nd5 {[%emt 0:03:16]} 13. e4 {[%emt 0:03:28]} Nf6 {[%emt 0:07:58]} 14. e5 {[%emt 0:02:13]} Nd5 {[%emt 0:01:11]} 15. Nc4 {[%emt 0:16:13]} b5 {[%emt 0:13:17][%cal Ob8c6]} (15... Ra7 {simplifies} 16. Nc2 Bc6 17. Bxd5 Bxd5 18. N2e3 Bxc4 19. Nxc4 Qxd1 20. Rfxd1 Bc5) 16. Ne3 {[%emt 0:02:58]} (16. Rc1 $5) 16... Nxe3 {[%emt 0:03:02]} 17. fxe3 {[%emt 0:00:04]} Ra7 {[%emt 0:02:05]} 18. Bxb7 {[%emt 0:05:34]} Rxb7 {[%emt 0:00:02]} 19. Qh5 {[%emt 0:04:11]} g6 {[%emt 0:12:48]} 20. Qg4 {[%emt 0:00:48]} Qd5 {[%emt 0:01:10]} 21. Nf3 {[%emt 0:15:06]} Rd7 {[%emt 0:05:20]} 22. Bd4 {[%emt 0:01:56]} f5 {[%emt 0:16:50]} (22... Nc6 23. e4 h5 24. exd5) (22... a5 $11 {keeps the balance.}) 23. exf6 $16 {[%emt 0:00:33]} Bxf6 {[%emt 0:00:02]} 24. Bxf6 {[%emt 0:13:08]} Rxf6 {[%emt 0:00:02]} 25. Rac1 {[%emt 0:08:21]} Nc6 {[%emt 0:06:30]} 26. Ng5 {[%emt 0:03:56]} (26. Qh4 $16 Rff7 27. Ng5 Rxf1+ 28. Rxf1) 26... Rxf1+ {[%emt 0:08:27]} (26... Qe5 $11) 27. Rxf1 $14 {[%emt 0:00:02][%cal Og5e4] Black must now prevent Ne4!} Re7 $2 {[%emt 0:01:37]} (27... h5 $1 $14 28. Qf4 (28. Qxe6+ Qxe6 29. Nxe6 Rd2 $14) 28... Qf5) 28. e4 $2 {[%emt 0:03:02]} ({White should play} 28. Ne4 $18 {Nf6+ is the strong threat.} Kg7 29. Qh4) 28... Qe5 {[%emt 0:00:49]} (28... Qd7 $14) 29. Qf3 $1 $16 {[%emt 0:00:59][%csl Gf1][%cal Rf3f8]} Qd4+ {[%emt 0:00:52]} (29... Qc5+ 30. Kh1 Ra7 31. Nxe6 h6 32. Nxc5 Kh7 33. Qf6 Rg7 34. Ne6 (34. Qxc6 h5 35. Rf8 Rg8 36. Rxg8 Kxg8 37. Qd7 Kh8 38. Ne6 h4 39. Qg7#)) (29... Qb8 $16 30. Qf6 Qe8) 30. Kh1 $18 {[%emt 0:00:07]} Qd8 {[%emt 0:00:01] [#] Prevents Qf8+} (30... Qg7 31. e5 Nd8) 31. Qf6 $2 {[%emt 0:00:40]} (31. Nxe6 $1 $18 {is the precise move to win. Qf8+ would kill now.} Rxe6 32. Qf7+ Kh8 33. Qxe6) 31... Qe8 $16 {[%emt 0:00:26]} 32. Rc1 $40 {[%emt 0:03:54][%mdl 128] White wants a kill.} h6 {[%emt 0:02:06]} 33. Nh3 {[%emt 0:02:12]} ({White should try} 33. Nf3 {[%cal Oc1c6] aiming for Rxc6!} Nb8 34. Qf4) 33... Nd8 {[%emt 0:00:00]} 34. Nf4 {[%emt 0:01:46] Black is weak on the dark squares} Kh7 {[%emt 0:00:00]} 35. Rc8 {[%emt 0:02:06] White has more active pieces.} ({Wrong is} 35. Nxg6 $2 Rf7 36. Qc3 Kxg6 $19) (35. h3 $14) 35... Qf7 $11 {[%emt 0:00:34]} 36. Qe5 {[%emt 0:00:23]} g5 {[%emt 0:00:42] And now ...Rd7 would win.} 37. Nh3 {[%emt 0:03:31]} Rd7 {[%emt 0:00:27]} (37... Qf1+ 38. Ng1 Nf7 39. Qc5) 38. Ng1 {[%emt 0:00:45]} Qf2 $2 {[%emt 0:00:42][%mdl 8192] [#]} (38... Qg7 $11 {and Black stays safe.} 39. Qb8 Qd4) 39. Rxd8 $1 {[%emt 0:00:33][%mdl 512] Weighted Error Value: White=0.38/Black=0.53.  Loses game:     	---       	Black=1      Missed win:     	White=2     	---        Mistake:       	White=3     	Black=6      Inaccurate:     	White=2     	Black=3      OK:         	White=9     	Black=8      Best:        	White=2     	Black=1      Strong:       	White=1     	---        Brilliant:      	White=1     	---} 1-0

[Event "125-Jahre Werder Bremen 2024"]
[Site "Bremen"]
[Date "2024.03.09"]
[Round "8.11"]
[White "Radeva, Viktoria"]
[Black "Meins, Gerlef"]
[Result "1/2-1/2"]
[ECO "B92"]
[WhiteElo "2325"]
[BlackElo "2390"]
[Annotator "TA"]
[PlyCount "63"]
[EventDate "2024.02.26"]
[EventType "swiss"]
[EventCountry "GER"]
[SourceTitle "playchess.com"]
[Source "ChessBase"]
[SourceQuality "1"]
[TimeControl "40/6000+30:1800+30"]

{[%evp 19,63,1,72,-20,-14,-25,-2,-25,-33,-35,-10,-14,-10,-16,-20,-45,-38,-44,0,0,0,0,0,0,0,0,0,6,13,0,37,36,34,35,42,12,30,29,26,22,43,8,46,46,50,35]} 1. e4 {[%emt 0:00:03]} c5 {[%emt 0:00:13]} 2. Nf3 {[%emt 0:00:18]} d6 {[%emt 0:00:20]} 3. d4 cxd4 {[%emt 0:00:07]} 4. Nxd4 {[%emt 0:01:52]} Nf6 {[%emt 0:00:27]} 5. Nc3 {[%emt 0:00:03]} a6 {[%emt 0:01:36]} 6. Be2 {[%emt 0:00:59]} e5 {[%emt 0:01:22]} 7. Nb3 {[%emt 0:00:33]} Be7 {[%emt 0:00:59]} 8. O-O {[%emt 0:01:29]} O-O {[%emt 0:03:02]} 9. Kh1 {[%emt 0:00:53]} Be6 {[%emt 0:13:41]} 10. f4 {[%emt 0:00:18]} Qc7 {[%emt 0:04:42]} (10... Bd7 $11 {bleibt in der Remisbreite.}) 11. Qe1 {[%emt 0:07:15]} (11. f5 $16 Bc4 12. g4) 11... Nbd7 {[%emt 0:07:52][%cal Bb8d7,Bd7c5,Bc5a4][%mdl 32]} 12. Qg3 {[%emt 0:06:20]} Kh8 {[%emt 0:08:54]} 13. fxe5 {[%emt 0:07:33] Die Stellung ist ausgeglichen.} dxe5 {[%emt 0:12:48]} 14. Nd4 {[%emt 0:01:17]} Bb4 {[%emt 0:01:26]} 15. Nxe6 {[%emt 0:24:52]} fxe6 {[%emt 0:00:12]} 16. Bd2 {[%emt 0:00:36]} Nc5 {[%emt 0:06:47]} 17. Bf3 {[%emt 0:07:15]} Rad8 {[%emt 0:02:56]} 18. Qe1 {[%emt 0:09:19]} Bxc3 {[%emt 0:04:05]} (18... Na4 $15) 19. Bxc3 $11 {[%emt 0:00:13]} Nfxe4 {[%emt 0:00:09]} 20. b4 {[%emt 0:02:20]} Na4 {[%emt 0:04:22] Ein dynamisches Springerpaar.} 21. Bxe5 {[%emt 0:04:09]} Qxe5 {[%emt 0:00:39]} 22. Qxe4 {[%emt 0:00:07]} Qxe4 {[%emt 0:02:22]} 23. Bxe4 {[%emt 0:00:05]} b6 {[%emt 0:00:11]} 24. Kg1 {[%emt 0:04:22]} g6 {[%emt 0:04:10]} 25. Rxf8+ {[%emt 0:01:42]} Rxf8 $14 {[%emt 0:00:04][%mdl 4096] Endspiel. KRB-KRN} 26. Re1 {[%emt 0:01:27]} a5 {[%emt 0:08:27]} 27. a3 {[%emt 0:04:56]} axb4 {[%emt 0:01:17]} 28. axb4 {[%emt 0:00:06]} Nc3 {[%emt 0:02:20]} 29. Bf3 {[%emt 0:07:56]} Rf4 {[%emt 0:07:07]} 30. Re3 {[%emt 0:03:04]} Rc4 {[%emt 0:00:40]} 31. Rxe6 {[%emt 0:01:09]} Rxb4 {[%emt 0:00:21]} 32. Rc6 {[%emt 0:01:12] Gewichteter Fehlerwert: Weiß=0.15 (sehr präzise) /Schwarz=0.19 (sehr präzise) .  Fehler:       	---       	Schwarz=1     Ungenau:       	Weiß=2     	Schwarz=2     OK:         	Weiß=9     	Schwarz=6     Bester:       	Weiß=1     	---} 1/2-1/2